bitfinex/quotes_SOLUSD_20250228
["timestamp","ask_amount","ask_price","bid_price","bid_amount"]
[1740739267722,1.6385,130.97,130.9,41.62964886]
[1740739267923,20.0,130.96,130.9,41.62964886]
[1740739268525,1.6385,130.97,130.9,49.26864886]
[1740739268915,128.73,130.99,130.92,18.64964886]
[1740739269120,0.03,130.99,130.92,232.9116598]
[1740739269419,0.17216157,130.99,130.92,232.9116598]
[1740739269633,0.08902575,130.99,130.92,232.9116598]
[1740739270444,8.2287,131.0,130.92,232.9116598]
[1740739270606,20.0,130.97,130.92,240.5498598]
[1740739270807,8.2287,131.0,130.92,240.5498598]
[1740739271343,20.0,130.97,130.92,240.5498598]
[1740739271626,20.0,130.97,130.92,232.9116598]
[1740739272221,8.2287,131.0,130.92,240.5496598]
[1740739272222,20.0,130.99,130.92,240.5496598]
[1740739272428,20.0,130.99,130.93,27.87269957]
[1740739273231,0.03,131.0,130.94,1.79756157]
[1740739273413,0.03,130.97,130.96,18.64964886]
[1740739273613,0.03,130.97,130.96,214.26201094]
[1740739273931,0.03,130.97,130.96,77.76201094]
[1740739277806,20.03,130.97,130.93,85.38201094]
[1740739278011,20.03,130.97,130.93,77.76201094]
[1740739280330,20.0,130.95,130.91,77.82501094]
[1740739281345,0.14216157,130.94,130.91,77.82501094]
[1740739281537,20.0,130.93,130.91,0.063]
[1740739282651,20.0,130.92,130.91,0.063]
[1740739283747,4.51279846,130.97,130.92,18.64964886]
[1740739283917,0.03,130.97,130.92,96.4116598]
[1740739284740,20.03,130.97,130.92,96.4116598]
[1740739287944,20.03,130.97,130.92,77.76201094]
[1740739289640,20.0,130.96,130.92,77.76201094]
[1740739291539,20.0,130.96,130.93,24.98644886]
[1740739291848,0.03,130.97,130.93,26.53984886]
[1740739294845,0.03,130.97,130.92,77.76201094]
[1740739295043,0.03,130.97,130.91,0.063]
[1740739295251,20.0,130.96,130.91,0.063]
[1740739295458,20.0,130.94,130.91,0.063]
[1740739297943,20.0,130.94,130.91,77.82501094]
[1740739299251,20.0,130.94,130.92,18.64964886]
[1740739299432,0.03,130.97,130.93,1.636]
[1740739299732,0.03,130.97,130.93,225.12099453]
[1740739300047,0.03,130.97,130.93,223.51801094]
[1740739301143,20.03,130.97,130.93,87.01801094]
[1740739301743,20.03,130.97,130.93,77.76201094]
[1740739302256,20.0,130.96,130.91,214.32501094]
[1740739306849,21.6592,130.96,130.91,214.32501094]
[1740739307031,20.0,130.93,130.91,0.063]
[1740739308125,0.03,130.97,130.91,77.82501094]
[1740739308345,0.03,130.97,130.92,18.64964886]
[1740739308545,20.03,130.97,130.92,20.25283239]
[1740739308859,20.03,130.97,130.92,26.26964886]
[1740739310334,0.03,130.97,130.92,26.26964886]
[1740739311057,0.03,130.97,130.92,27.87282954]
[1740739311237,0.03,130.97,130.92,242.13484048]
[1740739311552,0.03,130.97,130.93,0.14216157]
[1740739311756,0.03,130.97,130.95,18.64964886]
[1740739311938,0.03,130.97,130.95,232.9116598]
[1740739312137,0.03,130.97,130.96,1.60279091]
[1740739312449,0.03,130.97,130.96,1.5182]
[1740739313636,0.03,130.97,130.96,234.4298598]
[1740739313964,0.03,130.97,130.96,234.57202137]
[1740739314168,0.03,130.97,130.96,240.72092137]
[1740739315455,0.03,130.99,130.97,18.64964886]
[1740739315652,0.03,130.99,130.97,27.87213273]
[1740739316061,0.03,130.99,130.97,26.26964886]
[1740739316235,0.03,130.99,130.97,27.87221348]
[1740739316581,0.03,130.99,130.97,26.26964886]
[1740739317279,0.03,130.99,130.97,104.0316598]
[1740739319573,0.03,130.99,130.97,240.5316598]
[1740739321281,0.03,130.99,130.97,221.88201094]
[1740739321755,0.03,130.99,130.97,214.26201094]
[1740739322341,0.03,130.99,130.93,104.1978598]
[1740739322548,0.03,130.99,130.93,85.54821094]
[1740739322743,20.0,130.98,130.93,77.76201094]
[1740739322948,20.0,130.96,130.92,77.76201094]
[1740739323947,20.14216157,130.95,130.91,0.13781596]
[1740739324346,20.06734561,130.95,130.91,0.063]
[1740739325172,20.0,130.95,130.91,0.063]
[1740739325465,82.8,130.94,130.91,0.063]
[1740739325668,20.0,130.92,130.91,0.063]
[1740739326245,82.8,130.93,130.91,0.063]
[1740739326454,0.14216157,130.92,130.91,0.063]
[1740739326647,7.76216157,130.92,130.91,0.063]
[1740739326847,96.37628198,130.92,130.91,0.063]
[1740739327349,96.37628198,130.92,130.8,85.73581094]
[1740739327350,0.14216157,130.88,130.8,85.73581094]
[1740739327565,20.14216157,130.88,130.8,222.23581094]
[1740739328069,20.14216157,130.88,130.81,18.64964886]
[1740739328460,20.0,130.84,130.8,77.82501094]
[1740739328768,20.0,130.84,130.8,0.063]
[1740739332148,7.62,130.87,130.81,18.64964886]
[1740739332352,90.42,130.91,130.81,232.9116598]
[1740739332547,20.0,130.88,130.81,240.5316598]
[1740739333659,20.0,130.87,130.81,240.5316598]
[1740739333875,0.14216157,130.89,130.81,240.5316598]
[1740739334595,20.0,130.87,130.81,240.5316598]
[1740739334972,82.8,130.9,130.81,240.5316598]
[1740739335471,20.0,130.87,130.81,240.5316598]
[1740739337088,20.0,130.89,130.83,18.64964886]
[1740739337287,20.0,130.89,130.84,8.2617]
[1740739337492,82.8,130.93,130.85,20.2538349]
[1740739337705,96.5451,130.95,130.85,234.51584584]
[1740739337993,13.7451,130.95,130.87,18.64964886]
[1740739338162,90.06446919,130.97,130.87,20.2534018]
[1740739338360,90.20663076,130.97,130.87,232.9116598]
[1740739338689,82.8,130.97,130.87,232.9116598]
[1740739338856,20.0,130.94,130.87,232.9116598]
[1740739339474,82.8,130.97,130.87,232.9116598]
[1740739339892,20.0,130.94,130.87,232.9116598]
[1740739343385,20.0,130.94,130.87,96.4116598]
[1740739343386,20.0,130.93,130.87,96.4116598]
[1740739343986,0.14216157,130.92,130.84,230.14371094]
[1740739344187,20.0,130.89,130.84,230.14371094]
[1740739344377,20.0,130.89,130.84,77.76201094]
[1740739344774,20.0,130.88,130.82,96.4116598]
[1740739346183,20.0,130.88,130.82,98.01618451]
[1740739349905,20.0,130.9,130.82,234.51618451]
[1740739350092,20.0,130.9,130.82,232.9116598]
[1740739352816,9.274,130.94,130.83,0.14216157]
[1740739353011,9.274,130.94,130.84,18.64964886]
[1740739353310,20.0,130.91,130.84,18.64964886]
[1740739353484,20.0,130.91,130.84,232.9116598]
[1740739353800,20.0,130.92,130.84,232.9116598]
[1740739358792,20.0,130.9,130.84,96.4116598]
[1740739360804,20.0,130.9,130.84,232.9116598]
[1740739363811,0.03,130.92,130.84,232.9116598]
[1740739363812,20.0,130.89,130.84,77.76201094]
[1740739367429,90.09446919,130.92,130.85,18.64964886]
[1740739367806,82.83,130.92,130.85,96.4116598]
[1740739368322,20.0,130.89,130.85,96.4116598]
[1740739368522,0.03,130.92,130.87,18.64964886]
[1740739368725,0.03,130.92,130.87,239.3524598]
[1740739379732,0.03,130.92,130.87,220.70281094]
[1740739381026,0.03,130.92,130.88,18.64964886]
[1740739381339,0.03,130.92,130.88,96.4116598]
[1740739383037,0.03,130.92,130.88,77.76201094]
[1740739383522,20.03,130.92,130.87,84.20281094]
[1740739384230,20.0,130.9,130.84,6.3198]
[1740739384618,20.0,130.86,130.84,0.063]
[1740739384816,20.0,130.85,130.84,0.063]
[1740739385046,20.14216157,130.85,130.84,0.063]
[1740739385431,0.14216157,130.85,130.84,0.063]
[1740739389453,82.8,130.86,130.84,0.063]
[1740739389841,0.14216157,130.87,130.84,0.063]
[1740739390275,20.0,130.85,130.84,0.063]
[1740739390766,0.03,130.92,130.84,6.2556]
[1740739390982,20.0,130.89,130.84,84.01761094]
[1740739391665,82.83,130.92,130.84,84.01761094]
[1740739392054,20.0,130.89,130.84,84.01761094]
[1740739392767,20.0,130.87,130.84,0.063]
[1740739393283,20.0,130.9,130.84,0.063]
[1740739394466,0.14216157,130.89,130.84,0.063]
[1740739394779,20.0,130.86,130.84,0.063]
[1740739394964,20.0,130.85,130.84,0.063]
[1740739398766,20.14216157,130.85,130.84,0.063]
[1740739402191,20.0,130.85,130.84,0.063]
[1740739402764,82.8,130.89,130.84,0.063]
[1740739403184,99.39264553,130.91,130.84,18.71264886]
[1740739403766,16.59264553,130.91,130.84,96.4746598]
[1740739404385,0.03,130.92,130.84,96.4746598]
[1740739404579,0.03,130.92,130.84,234.57880967]
[1740739404780,0.03,130.92,130.84,232.9746598]
[1740739404982,20.0,130.91,130.84,232.9746598]
[1740739405182,0.03,130.92,130.84,232.9746598]
[1740739405571,20.0,130.91,130.84,232.9746598]
[1740739408096,20.0,130.9,130.84,96.4746598]
[1740739409010,20.0,130.9,130.84,77.82501094]
[1740739409175,20.0,130.88,130.84,77.82501094]
[1740739409375,20.0,130.87,130.84,0.063]
[1740739411307,20.0,130.87,130.84,18.71264886]
[1740739411897,0.03,130.91,130.84,96.4746598]
[1740739412097,20.03,130.91,130.84,232.9746598]
[1740739413020,0.03,130.91,130.84,232.9746598]
[1740739413309,20.03,130.91,130.86,20.22974886]
[1740739413503,0.03,130.91,130.86,27.82974886]
[1740739413804,0.03,130.91,130.88,18.64964886]
[1740739413992,0.03,130.91,130.88,232.9116598]
[1740739420116,0.03,130.91,130.9,18.64964886]
[1740739420417,0.03,130.91,130.89,1.6326]
[1740739420728,0.03,130.91,130.9,18.64964886]
[1740739422198,0.03,130.91,130.89,1.6326]
[1740739423516,20.03,130.91,130.87,83.77941094]
[1740739423819,0.03,130.91,130.88,18.64964886]
[1740739427196,0.03,130.91,130.88,232.9116598]
[1740739427600,0.03,130.91,130.9,26.18804886]
[1740739427799,0.03,130.91,130.9,33.78804886]
[1740739428212,0.03,130.91,130.9,33.93021043]
[1740739431011,0.03,130.92,130.91,18.79181043]
[1740739431195,0.03,130.92,130.91,236.65714666]
[1740739431403,0.03,130.92,130.91,235.05382137]
[1740739432224,0.03,130.94,130.92,0.14216157]
[1740739432423,0.03,130.94,130.93,18.79181043]
[1740739433023,0.03,130.94,130.93,22.31251043]
[1740739433522,0.03,130.99,130.93,24.31251043]
[1740739433719,0.03,130.99,130.93,234.4323598]
[1740739434927,0.03,130.99,130.93,97.9323598]
[1740739435521,20.03,130.99,130.93,97.9323598]
[1740739440616,20.0,130.98,130.93,97.9323598]
[1740739442433,20.0,130.97,130.91,7.58]
[1740739442651,20.0,130.97,130.9,83.76941094]
[1740739442930,20.0,130.95,130.9,83.76941094]
[1740739443136,20.0,130.95,130.9,77.76201094]
[1740739444438,20.0,130.95,130.91,18.64964886]
[1740739444738,20.0,130.97,130.91,232.9116598]
[1740739445436,20.0,130.97,130.91,214.26201094]
[1740739445814,20.0,130.95,130.89,86.87721094]
[1740739447837,20.0,130.95,130.89,79.29721094]
[1740739448235,20.0,130.94,130.89,79.29721094]
[1740739448538,20.0,130.95,130.87,221.84201094]
[1740739448539,20.0,130.92,130.87,221.84201094]
[1740739449935,20.0,130.92,130.87,7.58]
[1740739450126,0.14216157,130.93,130.84,239.1287598]
[1740739450127,20.0,130.91,130.84,239.1287598]
[1740739450438,20.0,130.9,130.85,18.64964886]
[1740739451223,82.8,130.93,130.85,18.64964886]
[1740739451551,82.8,130.93,130.85,20.25375394]
[1740739451741,82.8,130.93,130.85,22.25375394]
[1740739452227,20.0,130.92,130.86,0.14216157]
[1740739452426,20.0,130.92,130.86,214.40417251]
[1740739452831,20.0,130.94,130.88,18.64964886]
[1740739453214,20.0,130.94,130.89,0.14216157]
[1740739453418,20.0,130.94,130.89,214.40417251]
[1740739453647,20.0,130.95,130.89,214.40417251]
[1740739453843,6.0771,130.98,130.89,214.40417251]
[1740739454334,20.0,130.95,130.89,214.40417251]
[1740739455539,20.0,130.96,130.91,18.64964886]
[1740739456334,20.0,130.96,130.91,232.9116598]
[1740739456537,7.31672178,130.99,130.91,232.9116598]
[1740739456739,1.5526,130.99,130.91,232.9116598]
[1740739456930,20.0,130.97,130.91,232.9116598]
[1740739457934,0.03,130.99,130.93,18.64964886]
[1740739458133,20.03,130.99,130.93,26.22964886]
[1740739458352,20.03,130.99,130.93,240.4916598]
[1740739458721,0.03,130.99,130.93,240.4916598]
[1740739459345,0.03,130.99,130.94,0.14216157]
[1740739459562,0.03,130.99,130.94,214.40417251]
[1740739461747,0.03,130.99,130.97,18.64964886]
[1740739461935,0.03,130.99,130.97,232.9116598]
[1740739465749,0.03,130.99,130.98,1.642]
[1740739466129,0.03,130.99,130.98,242.27582137]
[1740739468327,0.03,130.99,130.98,242.1336598]
[1740739468733,0.03,130.99,130.98,215.90401094]
[1740739469142,0.03,130.99,130.98,234.5536598]
[1740739470345,0.03,130.99,130.98,234.69582137]
[1740739471338,0.03,131.0,130.99,18.79181043]
[1740739471538,0.03,131.0,130.99,20.39394719]
[1740739473359,0.03,131.0,130.99,18.79181043]
[1740739474764,0.03,131.0,130.99,232.9116598]
[1740739475154,0.03,131.0,130.99,214.26201094]
[1740739476053,0.03,131.0,130.99,232.9116598]
[1740739476563,0.03,131.0,130.99,233.05382137]
[1740739479357,0.03,131.0,130.99,232.9116598]
[1740739480554,0.03,131.0,130.99,96.4116598]
[1740739482073,0.03,131.0,130.99,232.9116598]
[1740739482452,0.03,131.0,130.99,214.26201094]
[1740739483665,0.03,131.0,130.99,232.9116598]
[1740739484771,0.03,131.0,130.99,214.26201094]
[1740739491352,0.03,131.0,130.99,77.76201094]
[1740739491583,0.03,131.0,130.99,0.063]
[1740739494059,20.03,131.0,130.99,0.063]
[1740739494774,102.97216157,131.0,130.99,0.063]
[1740739494983,102.97216157,131.0,130.97,2.85209437]
[1740739494984,121.62181043,131.0,130.97,2.85209437]
[1740739495276,7.6086,130.99,130.97,2.85209437]
[1740739495477,20.0,130.95,130.91,77.76201094]
[1740739495677,20.0,130.94,130.88,86.07121094]
[1740739495859,20.0,130.94,130.88,214.32501094]
[1740739500480,20.0,130.93,130.88,214.32501094]
[1740739502279,7.58,130.97,130.88,214.32501094]
[1740739502280,7.58,130.97,130.89,18.79181043]
[1740739502497,7.58,130.97,130.9,7.58]
[1740739502498,82.8,130.97,130.9,7.58]
[1740739502695,20.14216157,130.93,130.88,0.063]
[1740739502898,20.0,130.92,130.88,0.063]
[1740739503684,7.7161,130.97,130.89,18.64964886]
[1740739504006,7.7161,130.97,130.89,232.9116598]
[1740739504299,20.0,130.94,130.89,214.26201094]
[1740739504506,7.7161,130.97,130.89,77.76201094]
[1740739504685,7.7161,130.97,130.89,214.26201094]
[1740739504881,20.0,130.94,130.9,18.64964886]
[1740739505080,20.0,130.94,130.9,232.9116598]
[1740739505575,21.6262,130.97,130.9,232.9116598]
[1740739505998,1.6262,130.97,130.9,232.9116598]
[1740739506296,21.6262,130.97,130.9,232.9116598]
[1740739506501,0.03,130.97,130.91,0.14216157]
[1740739506683,0.03,130.97,130.91,216.00749553]
[1740739507002,0.03,130.97,130.91,214.40417251]
[1740739507707,0.03,130.97,130.91,77.76201094]
[1740739508774,0.03,130.97,130.92,18.64964886]
[1740739509183,0.03,130.97,130.93,7.58]
[1740739509481,0.03,130.97,130.93,221.84201094]
[1740739510675,0.03,130.97,130.93,85.34201094]
[1740739512486,0.03,130.97,130.93,221.84201094]
[1740739512686,0.03,130.97,130.94,1.5447]
[1740739513078,0.03,130.97,130.95,18.64964886]
[1740739513278,0.03,130.97,130.96,0.14216157]
[1740739513491,0.03,130.97,130.96,214.40417251]
[1740739513797,0.03,130.97,130.96,214.26201094]
[1740739514005,0.03,130.97,130.96,232.9116598]
[1740739514307,0.03,130.97,130.96,233.05382137]
[1740739516398,0.03,130.97,130.96,239.39692137]
[1740739518883,0.03,131.0,130.97,20.36871043]
[1740739519084,0.03,131.0,130.99,0.14216157]
[1740739519305,0.03,131.0,130.99,214.40417251]
[1740739519494,0.03,131.0,130.99,233.05382137]
[1740739519804,0.03,131.0,130.99,241.44922137]
[1740739520100,0.03,131.0,130.99,239.44922137]
[1740739520499,0.03,131.0,130.99,239.3070598]
[1740739520695,0.03,131.0,130.99,246.8670598]
[1740739521303,0.03,131.0,130.99,228.21741094]
[1740739521510,0.03,131.0,130.99,221.82201094]
[1740739522095,0.03,131.0,130.99,240.4716598]
[1740739523123,0.03,131.0,130.99,240.61382137]
[1740739523406,0.03,131.0,130.99,242.61382137]
[1740739523588,0.03,131.0,130.99,244.61382137]
[1740739523792,0.03,131.01,131.0,27.13431043]
[1740739524005,0.03,131.01,131.0,246.58558205]
[1740739524206,0.03,131.01,131.0,244.98362137]
[1740739524894,0.03,131.03,131.02,40.64964886]
[1740739525095,0.03,131.03,131.02,258.65566213]
[1740739525293,0.03,131.03,131.02,257.05382137]
[1740739525501,0.03,131.05,131.04,2.14216157]
[1740739525814,0.03,131.05,131.04,244.21532449]
[1740739526113,0.03,131.05,131.04,242.61382137]
[1740739527425,0.03,131.05,131.04,240.61382137]
[1740739527911,0.03,131.05,131.04,240.4716598]
[1740739529216,0.03,131.05,131.04,240.61382137]
[1740739531917,0.03,131.05,131.04,240.4716598]
[1740739532415,0.03,131.05,131.04,214.26201094]
[1740739534097,0.03,131.05,131.04,232.9116598]
[1740739535423,0.03,131.05,131.04,233.05382137]
[1740739540826,0.03,131.05,131.04,232.9116598]
[1740739541136,0.03,131.05,131.04,77.76201094]
[1740739545742,0.03,131.05,131.04,96.4116598]
[1740739545915,0.03,131.05,131.04,232.9116598]
[1740739548525,0.03,131.05,131.04,233.05382137]
[1740739548732,0.03,131.05,131.04,234.66482137]
[1740739553537,0.03,131.05,131.04,265.29602137]
[1740739554223,0.03,131.05,131.04,271.34412137]
[1740739554437,0.03,131.05,131.04,275.34412137]
[1740739554821,0.03,131.05,131.04,267.71292137]
[1740739555022,0.03,131.05,131.04,240.71292137]
[1740739555319,0.03,131.05,131.04,215.87301094]
[1740739555628,0.03,131.05,131.04,77.76201094]
[1740739556850,0.03,131.05,131.03,77.82501094]
[1740739558551,0.03,131.05,131.04,18.64964886]
[1740739559318,0.03,131.05,131.04,232.9116598]
[1740739561043,0.03,131.05,131.04,77.76201094]
[1740739566886,0.03,131.05,131.03,77.82501094]
[1740739567170,20.0,131.04,131.03,0.063]
[1740739568445,20.14216157,131.04,131.03,0.063]
[1740739568754,0.14216157,131.04,131.03,0.063]
[1740739573140,82.83,131.05,131.03,0.063]
[1740739573543,0.14216157,131.04,131.03,0.063]
[1740739573750,82.94216157,131.04,131.03,0.063]
[1740739574154,82.8,131.04,131.03,0.063]
[1740739574350,0.03,131.05,131.03,0.063]
[1740739576368,0.03,131.05,131.03,81.663]
[1740739576566,0.03,131.05,131.03,218.163]
[1740739577651,0.03,131.05,131.04,18.64964886]
[1740739577867,0.03,131.05,131.03,218.163]
[1740739579789,0.03,131.05,131.03,81.663]
[1740739579979,20.03,131.05,131.03,81.663]
[1740739580158,20.03,131.05,131.03,0.063]
[1740739580861,20.14216157,131.04,131.03,0.063]
[1740739581895,0.14216157,131.04,131.03,0.063]
[1740739582864,82.94216157,131.04,131.03,0.063]
[1740739583371,82.8,131.04,131.03,0.063]
[1740739583567,1.5429,131.05,131.03,0.063]
[1740739583772,21.5429,131.05,131.03,0.063]
[1740739585499,0.14216157,131.04,131.03,0.063]
[1740739585880,22.79181043,131.04,131.03,0.063]
[1740739586078,38.86688291,131.04,131.03,0.063]
[1740739586376,38.86688291,131.04,130.96,0.063]
[1740739586377,20.0,131.0,130.96,0.063]
[1740739586698,20.0,131.0,130.96,81.663]
[1740739589587,0.03,131.05,130.99,18.64964886]
[1740739589780,0.03,131.05,130.99,236.74964886]
[1740739590175,20.0,131.04,130.99,236.74964886]
[1740739591375,20.0,131.04,130.99,236.81264886]
[1740739591597,0.03,131.05,130.99,236.81264886]
[1740739592890,20.0,131.04,130.99,236.81264886]
[1740739594902,20.0,131.04,130.99,218.163]
[1740739596203,0.03,131.05,131.0,18.64964886]
[1740739596405,0.03,131.05,131.02,18.64964886]
[1740739596625,0.03,131.05,131.02,236.74964886]
[1740739597406,0.03,131.05,131.03,7.8779]
[1740739597695,0.03,131.05,131.04,18.64964886]
[1740739597897,0.03,131.05,131.04,236.74964886]
[1740739599298,0.03,131.06,131.05,0.14216157]
[1740739599497,0.03,131.07,131.06,18.64964886]
[1740739599684,0.03,131.07,131.06,26.18964886]
[1740739600903,0.03,131.07,131.06,26.33181043]
[1740739602196,0.03,131.08,131.07,0.14216157]
[1740739602389,0.03,131.08,131.07,236.89181043]
[1740739603203,0.03,131.08,131.07,247.09341043]
[1740739604599,0.03,131.1,131.08,18.64964886]
[1740739604779,0.03,131.1,131.08,236.74964886]
[1740739605293,0.03,131.1,131.09,0.14216157]
[1740739607682,0.03,131.13,131.09,242.49303859]
[1740739607905,0.03,131.13,131.1,18.79181043]
[1740739608284,0.03,131.13,131.1,20.79181043]
[1740739608790,0.03,131.13,131.1,18.79181043]
[1740739608993,0.03,131.13,131.1,20.79181043]
[1740739610599,0.03,131.13,131.1,22.39284205]
[1740739610784,0.03,131.13,131.1,20.79181043]
[1740739611300,0.03,131.13,131.1,238.89181043]
[1740739611698,0.03,131.13,131.1,236.89181043]
[1740739612283,0.03,131.13,131.1,238.89181043]
[1740739615205,0.03,131.13,131.1,236.89181043]
[1740739615602,0.03,131.13,131.12,23.13216157]
[1740739615782,0.03,131.13,131.12,271.02231653]
[1740739615986,0.03,131.13,131.12,269.42181043]
[1740739616403,0.03,131.13,131.12,277.04841043]
[1740739616605,0.03,131.13,131.12,267.42181043]
[1740739616819,0.03,131.13,131.12,244.43181043]
[1740739617791,0.03,131.13,131.12,89.14]
[1740739618188,0.03,131.13,131.12,81.6]
[1740739618387,0.03,131.13,131.08,7.52]
[1740739618590,0.03,131.13,131.08,89.12]
[1740739619906,0.03,131.13,131.09,18.64964886]
[1740739620603,0.03,131.13,131.08,89.12]
[1740739620791,20.0,131.12,131.08,89.12]
[1740739622511,20.0,131.12,131.03,7.7849]
[1740739622512,20.0,131.11,131.03,225.8849]
[1740739622811,20.0,131.09,131.03,81.6]
[1740739623111,20.0,131.08,131.03,218.1]
[1740739623898,20.0,131.08,131.01,81.6]
[1740739624098,0.14216157,131.07,131.01,89.12]
[1740739624303,20.14216157,131.07,131.01,89.12]
[1740739624810,20.0,131.05,131.0,0.13691459]
[1740739625015,20.14216157,131.04,131.0,0.13691459]
[1740739625214,20.0,131.02,131.0,0.13691459]
[1740739627203,6.3662,131.02,131.0,0.13691459]
[1740739627399,20.14216157,131.01,131.0,0.13691459]
[1740739628918,42.35021043,131.01,131.0,0.13691459]
[1740739629300,42.35021043,131.01,130.99,0.063]
[1740739629301,22.79181043,131.0,130.99,0.063]
[1740739630019,20.79181043,131.0,130.99,0.063]
[1740739630218,103.59181043,131.0,130.99,0.063]
[1740739630718,84.94216157,131.0,130.99,0.063]
[1740739630918,7.26446919,131.01,130.99,0.063]
[1740739631139,6.3662,131.02,130.99,0.063]
[1740739631310,13.32236919,131.06,130.99,81.663]
[1740739631499,6.0579,131.06,130.99,81.663]
[1740739632006,20.0,131.03,130.99,81.663]
[1740739632831,0.14216157,131.05,130.99,81.663]
[1740739633421,20.0,131.03,130.99,81.663]
[1740739634110,20.0,131.04,130.99,81.663]
[1740739634528,82.8,131.07,130.99,81.663]
[1740739634701,82.8,131.07,130.99,218.163]
[1740739634906,82.8,131.07,131.0,7.54]
[1740739635103,7.26446919,131.1,131.01,18.64964886]
[1740739635406,82.8,131.11,131.01,236.74964886]
[1740739635621,6.6201,131.12,131.02,0.14216157]
[1740739635834,6.6201,131.12,131.02,1.70326157]
[1740739636033,20.0,131.09,131.02,1.70326157]
[1740739636329,6.6201,131.12,131.08,312.0]
[1740739636522,82.83,131.13,131.08,312.0]
[1740739636826,82.83,131.13,131.06,7.54]
[1740739637028,20.0,131.1,131.06,13.5639]
[1740739637526,20.0,131.1,131.06,7.54]
[1740739638803,20.0,131.1,131.07,18.64964886]
[1740739639019,20.0,131.1,131.06,7.54]
[1740739639806,20.0,131.1,131.09,312.0]
[1740739641028,20.0,131.12,131.09,312.0]
[1740739641227,20.0,131.12,131.06,225.64]
[1740739642028,11.76,131.12,131.06,225.64]
[1740739643925,0.14216157,131.11,131.06,225.64]
[1740739644225,0.14216157,131.11,131.1,312.0]
[1740739644428,104.94216157,131.11,131.1,312.0]
[1740739644619,108.58686157,131.11,131.1,312.0]
[1740739644929,104.58686157,131.11,131.1,312.0]
[1740739645230,106.58686157,131.11,131.1,312.0]
[1740739645732,127.23651043,131.11,131.1,312.0]
[1740739646337,134.50097962,131.11,131.1,312.0]
[1740739646828,111.85133076,131.11,131.1,312.0]
[1740739647631,113.85133076,131.11,131.1,312.0]
[1740739647823,134.50097962,131.11,131.1,312.0]
[1740739648527,20.14216157,131.07,131.01,7.52]
[1740739648703,2.0,131.06,131.0,0.063]
[1740739649428,102.94216157,131.07,131.05,312.0]
[1740739649929,102.94216157,131.07,131.0,81.663]
[1740739651433,20.0,131.06,131.01,18.64964886]
[1740739651737,20.0,131.06,131.0,136.563]
[1740739652922,20.14216157,131.06,131.05,312.0]
[1740739653223,0.14216157,131.06,131.05,312.0]
[1740739653819,82.8,131.07,131.05,312.0]
[1740739654026,82.8,131.07,131.0,81.663]
[1740739654318,20.0,131.06,131.0,218.163]
[1740739654518,20.0,131.06,131.01,18.64964886]
[1740739655128,20.0,131.06,131.01,20.27144886]
[1740739655449,82.94216157,131.1,131.01,101.87144886]
[1740739655616,20.0,131.07,131.02,7.52]
[1740739655811,20.0,131.07,131.02,89.12]
[1740739656029,20.0,131.05,131.02,7.52]
[1740739656615,20.0,131.05,131.01,81.6]
[1740739656821,20.0,131.03,131.0,1.6399]
[1740739657022,20.0,131.03,131.02,312.0]
[1740739660232,82.8,131.06,131.02,312.0]
[1740739660536,0.14216157,131.08,131.02,81.6]